bitfinex/quotes_SOLUSD_20241022
["timestamp","ask_amount","ask_price","bid_price","bid_amount"]
[1729604629518,23.776884,165.75,165.66,70.0]
[1729604629719,23.776884,165.75,165.64,70.0]
[1729604629920,23.776884,165.73,165.64,70.0]
[1729604630325,29.810784,165.73,165.64,70.0]
[1729604633330,29.810784,165.73,165.63,6.1024]
[1729604633547,23.776884,165.73,165.63,6.1024]
[1729604633729,6.0353,165.7,165.6,21.4793]
[1729604633936,23.776884,165.69,165.6,21.4793]
[1729604634329,15.546,165.72,165.63,70.0]
[1729604634641,23.776884,165.74,165.63,70.0]
[1729604635226,29.810484,165.74,165.63,70.0]
[1729604635754,23.776884,165.74,165.63,70.0]
[1729604635962,29.810084,165.75,165.63,70.0]
[1729604636632,6.0336,165.74,165.63,70.0]
[1729604636831,23.776884,165.73,165.63,70.0]
[1729604639756,29.810884,165.73,165.63,70.0]
[1729604639959,21.6013,165.65,165.56,70.0]
[1729604640131,21.6013,165.65,165.58,70.0]
[1729604640838,23.776884,165.68,165.58,70.0]
[1729604641042,29.812584,165.68,165.58,70.0]
[1729604641343,6.0361,165.67,165.56,70.0]
[1729604641745,23.776884,165.68,165.58,70.0]
[1729604642048,6.0357,165.68,165.58,70.0]
[1729604642957,6.0365,165.66,165.56,70.0]
[1729604643652,6.0365,165.66,165.58,70.0]
[1729604643852,23.776884,165.67,165.58,70.0]
[1729604644057,29.812984,165.67,165.58,70.0]
[1729604646465,6.0378,165.63,165.54,70.0]
[1729604647244,23.776884,165.65,165.53,6.6392]
[1729604647442,6.0386,165.6,165.54,70.0]
[1729604647670,6.0382,165.62,165.54,70.0]
[1729604648035,23.776884,165.63,165.53,6.6392]
[1729604648236,6.0386,165.6,165.53,6.6392]
[1729604648462,23.776884,165.63,165.53,6.6392]
[1729604648650,6.0386,165.6,165.52,0.6234569]
[1729604648852,23.776884,165.63,165.52,70.6234569]
[1729604649144,23.776884,165.61,165.52,70.6234569]
[1729604649346,29.815184,165.61,165.52,70.6234569]
[1729604649541,6.038,165.62,165.52,70.6234569]
[1729604649758,20.0,165.65,165.52,70.6234569]
[1729604649759,43.776884,165.65,165.52,70.6234569]
[1729604649965,6.0379,165.62,165.52,70.6234569]
[1729604650965,6.0374,165.64,165.54,70.0]
[1729604651262,23.776884,165.63,165.54,70.0]
[1729604651464,6.0377,165.63,165.54,70.0]
[1729604652163,6.0376,165.63,165.54,70.0]
[1729604652368,39.79446371,165.7,165.57,70.0]
[1729604652667,6.0357,165.68,165.59,70.0]
[1729604652850,15.0857,165.72,165.59,70.0]
[1729604653049,6.0361,165.67,165.57,92.0873]
[1729604653366,6.0361,165.67,165.59,70.0]
[1729604653870,15.0857,165.72,165.59,70.0]
[1729604654044,6.036,165.68,165.59,70.0]
[1729604654352,6.0343,165.72,165.62,70.0]
[1729604654543,15.0847,165.73,165.58,70.0]
[1729604654865,21.1198,165.72,165.57,22.0873]
[1729604655166,6.0371,165.65,165.57,22.0873]
[1729604655354,6.0373,165.64,165.57,22.0873]
[1729604655753,15.0875,165.7,165.54,70.0]
[1729604655754,0.1,165.7,165.54,70.0]
[1729604655956,6.038,165.62,165.54,70.0]
[1729604656365,20.0,165.65,165.54,70.0]
[1729604656545,6.0376,165.63,165.54,70.0]
[1729604657147,23.776884,165.66,165.54,70.0]
[1729604657372,6.0358,165.68,165.58,70.0]
[1729604657553,22.4768,165.71,165.58,70.0]
[1729604657875,6.0354,165.69,165.6,70.0]
[1729604658783,43.776884,165.7,165.58,70.0]
[1729604658955,6.0365,165.66,165.58,70.0]
[1729604660455,6.0361,165.67,165.58,70.0]
[1729604660662,6.0372,165.64,165.55,70.0]
[1729604661054,43.776884,165.68,165.55,70.0]
[1729604661249,6.0368,165.65,165.55,70.0]
[1729604662863,6.0372,165.64,165.55,70.0]
[1729604663671,6.0372,165.64,165.53,76.1058]
[1729604663976,23.776884,165.62,165.53,76.1058]
[1729604664274,6.0384,165.61,165.53,6.1058]
[1729604665566,21.4917,165.61,165.52,0.6234569]
[1729604665877,21.4332805,165.66,165.53,70.0]
[1729604665878,43.776884,165.65,165.53,70.0]
[1729604666184,21.6954805,165.66,165.55,70.0]
[1729604666353,6.0369,165.65,165.55,70.0]
[1729604666895,15.4533,165.66,165.55,70.0]
[1729604667092,6.0365,165.66,165.57,70.0]
[1729604667957,23.776884,165.66,165.57,70.0]
[1729604668182,23.776884,165.67,165.57,70.0]
[1729604668568,6.0371,165.65,165.56,22.3817]
[1729604668768,6.0373,165.64,165.56,22.3817]
[1729604669286,6.0369,165.65,165.56,22.3817]
[1729604670086,20.0,165.67,165.56,22.3817]
[1729604670272,23.776884,165.69,165.53,70.0]
[1729604670273,6.038,165.62,165.53,70.0]
[1729604670472,29.815184,165.61,165.52,23.2328569]
[1729604670712,23.776884,165.6,165.52,23.2328569]
[1729604670997,20.0,165.65,165.52,23.2328569]
[1729604670998,20.0,165.65,165.53,70.0]
[1729604671161,23.776884,165.62,165.53,70.0]
[1729604671486,23.776884,165.64,165.53,70.0]
[1729604671487,6.0374,165.64,165.53,70.0]
[1729604671673,23.776884,165.63,165.53,70.0]
[1729604671877,23.776884,165.64,165.55,70.0]
[1729604672198,6.0353,165.69,165.57,70.0]
[1729604672392,15.6556,165.7,165.57,70.0]
[1729604672562,6.0359,165.68,165.57,70.0]
[1729604673495,23.776884,165.67,165.57,70.0]
[1729604674370,29.813084,165.67,165.57,70.0]
[1729604674990,23.776884,165.67,165.55,70.0]
[1729604675305,6.0372,165.64,165.55,70.0]
[1729604675676,6.0376,165.63,165.53,70.0]
[1729604675887,6.0378,165.63,165.53,70.0]
[1729604676098,6.0382,165.62,165.53,70.0]
[1729604676302,6.0382,165.62,165.52,23.2328569]
[1729604676498,20.0,165.64,165.52,23.2328569]
[1729604676703,6.0382,165.62,165.52,23.2328569]
[1729604677006,6.0383,165.61,165.52,23.2328569]
[1729604680979,23.776884,165.65,165.53,70.0]
[1729604681179,15.0889,165.69,165.53,70.0]
[1729604681180,23.776884,165.63,165.53,70.0]
[1729604681388,29.814484,165.63,165.53,70.0]
[1729604681999,23.776884,165.63,165.53,70.0]
[1729604682198,6.038,165.62,165.53,70.0]
[1729604682601,6.0384,165.61,165.52,23.2328569]
[1729604684313,29.814384,165.63,165.52,23.2328569]
[1729604684483,6.0379,165.62,165.52,23.2328569]
[1729604684806,23.776884,165.61,165.53,70.0]
[1729604685008,23.776884,165.63,165.53,70.0]
[1729604685191,30.93601009,165.7,165.53,70.0]
[1729604685192,23.776884,165.64,165.53,70.0]
[1729604685505,29.814084,165.64,165.53,70.0]
[1729604687817,6.0375,165.63,165.53,70.0]
[1729604688111,23.776884,165.64,165.53,70.0]
[1729604688409,29.814084,165.64,165.52,23.2328569]
[1729604688609,23.776884,165.63,165.52,23.2328569]
[1729604688820,23.776884,165.62,165.52,23.2328569]
[1729604689696,29.814884,165.62,165.52,23.2328569]
[1729604690791,23.776884,165.62,165.52,23.2328569]
[1729604692212,23.776884,165.59,165.52,23.2328569]
[1729604692789,23.776884,165.54,165.52,0.6234569]
[1729604692989,23.776884,165.54,165.36,70.0]
[1729604692990,23.776884,165.49,165.36,70.0]
[1729604693192,23.776884,165.47,165.35,0.6234569]
[1729604693409,6.0459,165.41,165.35,0.6234569]
[1729604693611,23.776884,165.4,165.35,0.6234569]
[1729604694226,18.13,165.35,165.24,2.03173473]
[1729604694527,18.13,165.35,165.07,21.57110862]
[1729604694528,6.0478,165.35,165.22,70.0]
[1729604694693,23.776884,165.34,165.2,70.0]
[1729604694886,23.776884,165.32,165.2,70.0]
[1729604695391,6.0499,165.3,165.18,70.6234569]
[1729604695606,29.825984,165.32,165.18,70.6234569]
[1729604696321,0.09251009,165.33,165.18,0.6234569]
[1729604696488,23.776884,165.3,165.18,0.6234569]
[1729604697110,23.776884,165.3,165.19,70.0]
[1729604697313,6.0486,165.33,165.2,70.0]
[1729604697503,23.776884,165.33,165.2,70.0]
[1729604697685,23.86939409,165.35,165.2,70.0]
[1729604697888,23.776884,165.32,165.2,70.0]
[1729604698314,6.0479,165.35,165.22,70.0]
[1729604698710,0.09251009,165.38,165.18,0.7234569]
[1729604698711,23.776884,165.36,165.2,70.0]
[1729604699198,23.776884,165.34,165.22,70.0]
[1729604699588,22.8058217,165.39,165.25,70.0]
[1729604699792,12.2952217,165.39,165.25,70.0]
[1729604700317,6.2487217,165.39,165.27,70.0]
[1729604700609,6.2487217,165.39,165.25,0.1]
[1729604700610,6.0445,165.44,165.31,70.0]
[1729604701117,0.09251009,165.42,165.25,70.0]
[1729604701428,6.0474,165.36,165.23,70.0]
[1729604701718,6.0472,165.37,165.23,70.0]
[1729604701922,0.09251009,165.4,165.23,70.0]
[1729604702213,20.1,165.42,165.25,70.0]
[1729604702214,23.86939409,165.41,165.25,70.0]
[1729604702417,23.776884,165.38,165.25,70.0]
[1729604702798,29.823584,165.38,165.25,70.0]
[1729604702993,23.776884,165.38,165.23,70.0]
[1729604703408,23.776884,165.36,165.23,70.0]
[1729604703908,23.776884,165.36,165.23,70.1]
[1729604704112,23.776884,165.36,165.23,70.0]
[1729604704400,23.776884,165.37,165.23,70.1]
[1729604704617,23.776884,165.37,165.25,70.0]
[1729604704933,6.0462,165.4,165.23,0.1]
[1729604704934,6.0462,165.4,165.27,70.0]
[1729604705110,6.046,165.4,165.31,0.1]
[1729604705309,13.42444123,165.46,165.31,0.1]
[1729604705525,6.0461,165.4,165.31,0.1]
[1729604705733,6.0463,165.39,165.31,0.1]
[1729604705915,6.0467,165.38,165.31,0.1]
[1729604706239,23.776884,165.35,165.28,0.1]
[1729604706448,23.776884,165.35,165.29,0.1]
[1729604706648,23.776884,165.35,165.24,0.1]
[1729604706649,23.776884,165.35,165.27,0.1]
[1729604706934,23.776884,165.35,165.29,0.1]
[1729604707116,20.0,165.42,165.29,0.1]
[1729604707117,20.0,165.42,165.29,0.2]
[1729604707321,15.1122,165.43,165.29,0.2]
[1729604707322,6.045,165.43,165.33,0.1]
[1729604707515,6.0452,165.42,165.33,0.1]
[1729604707717,6.0452,165.42,165.34,0.1]
[1729604708135,6.0456,165.41,165.34,0.1]
[1729604708325,5.99220581,165.46,165.34,0.1]
[1729604708932,23.776884,165.45,165.34,0.1]
[1729604709117,23.776884,165.41,165.34,0.1]
[1729604709945,5.99220581,165.46,165.38,0.1]
[1729604710116,5.99220581,165.46,165.4,0.1]
[1729604710439,23.30248764,165.55,165.41,0.1]
[1729604710440,22.2533,165.55,165.41,0.1]
[1729604710617,22.2533,165.55,165.4,0.1]
[1729604710618,22.2533,165.55,165.42,0.1]
[1729604710942,6.042,165.51,165.42,0.1]
[1729604711139,6.0408,165.54,165.42,0.1]
[1729604711351,6.0421,165.51,165.42,0.1]
[1729604711838,7.43223542,165.6,165.34,6.3222]
[1729604711839,7.43223542,165.6,165.45,0.1]
[1729604712045,6.0409,165.54,165.45,0.1]
[1729604712249,7.43223542,165.6,165.46,0.1]
[1729604712250,6.0406,165.55,165.46,0.1]
[1729604712427,6.0406,165.55,165.46,0.2]
[1729604712745,6.0411,165.54,165.45,0.1]
[1729604713043,6.0408,165.54,165.45,0.2]
[1729604713234,6.0404,165.56,165.46,0.2]
[1729604713444,6.0406,165.55,165.46,0.1]
[1729604713633,15.0967,165.6,165.46,0.1]
[1729604714028,15.0967,165.6,165.46,0.2]
[1729604714335,6.0407,165.55,165.46,0.2]
[1729604714536,23.776884,165.55,165.46,0.2]
[1729604714928,29.817284,165.55,165.46,0.2]
[1729604715648,23.776884,165.55,165.46,0.1]
[1729604715850,23.776884,165.51,165.45,0.1]
[1729604716345,23.776884,165.51,165.41,28.14246037]
[1729604716346,6.0422,165.5,165.42,0.1]
[1729604716645,6.0422,165.5,165.43,0.1]
[1729604717026,23.776884,165.51,165.41,0.1]
[1729604717231,6.0426,165.49,165.41,0.2]
[1729604717438,6.0426,165.49,165.42,0.1]
[1729604717746,23.776884,165.51,165.42,0.1]
[1729604717956,23.776884,165.51,165.42,0.2]
[1729604718148,23.776884,165.51,165.43,0.1]
[1729604718455,6.0423,165.5,165.42,0.1]
[1729604718639,29.818784,165.51,165.44,0.1]
[1729604719043,7.43223542,165.57,165.44,0.2]
[1729604719360,6.0407,165.55,165.47,0.1]
[1729604719829,6.039,165.59,165.5,0.1]
[1729604720030,6.1526,165.61,165.5,0.1]
[1729604720342,6.0395,165.58,165.5,0.1]
[1729604720542,6.1526,165.61,165.45,70.0]
[1729604720543,6.1526,165.61,165.51,0.1]
[1729604721228,6.0391,165.59,165.51,0.1]
[1729604721954,23.776884,165.57,165.51,0.1]
[1729604722137,6.0409,165.54,165.49,0.1]
[1729604722448,23.776884,165.55,165.49,0.1]
[1729604722953,29.817084,165.56,165.49,0.1]
[1729604723247,23.776884,165.53,165.47,0.1]
[1729604723654,23.776884,165.53,165.46,0.1]
[1729604723831,23.776884,165.53,165.47,0.1]
[1729604724155,23.776884,165.53,165.44,0.1]
[1729604724325,6.0422,165.51,165.45,0.1]
[1729604725135,23.776884,165.51,165.45,0.1]
[1729604726345,23.776884,165.51,165.44,0.1]
[1729604726648,23.776884,165.51,165.43,0.1]
[1729604726649,23.776884,165.51,165.45,0.1]
[1729604727049,15.0995,165.57,165.45,0.1]
[1729604727244,15.0995,165.57,165.39,28.14246037]
[1729604727245,23.776884,165.59,165.47,0.1]
[1729604727557,6.04,165.57,165.49,0.1]
[1729604727956,6.04,165.57,165.48,0.1]
[1729604727957,6.1526,165.61,165.5,0.1]
[1729604728163,6.0386,165.6,165.51,0.1]
[1729604728358,6.0395,165.58,165.51,0.1]
[1729604728542,6.1526,165.61,165.52,0.1]
[1729604728543,12.1909,165.61,165.52,0.1]
[1729604728740,6.1526,165.61,165.52,0.1]
[1729604728941,6.0387,165.6,165.52,0.1]
[1729604729258,6.0386,165.6,165.52,0.1]
[1729604729562,6.1526,165.61,165.5,0.1]
[1729604729941,6.0403,165.56,165.49,0.1]
[1729604730253,23.776884,165.6,165.45,6.238]
[1729604730254,23.776884,165.54,165.48,0.1]
[1729604730783,23.776884,165.54,165.47,0.1]
[1729604730968,29.817684,165.54,165.47,0.1]
[1729604731760,29.817684,165.54,165.37,0.1]
[1729604731761,21.1456,165.52,165.37,0.1]
[1729604731962,6.0437,165.47,165.4,0.1]
[1729604732163,20.0,165.5,165.39,0.1]
[1729604732361,6.0437,165.47,165.38,0.1]
[1729604732736,23.776884,165.46,165.38,0.1]
[1729604732941,29.820584,165.46,165.4,0.1]
[1729604733371,29.820584,165.46,165.39,0.1]
[1729604733863,29.820584,165.46,165.4,0.1]
[1729604734271,6.0452,165.42,165.33,0.1]
[1729604734467,38.13,165.5,165.32,0.1]
[1729604734468,23.776884,165.47,165.34,0.1]
[1729604734677,23.776884,165.41,165.35,0.1]
[1729604734871,23.776884,165.41,165.33,0.1]
[1729604734872,6.0462,165.4,165.33,0.1]
[1729604735180,23.776884,165.41,165.33,0.1]
[1729604735478,6.0472,165.37,165.3,0.1]
[1729604735663,6.0472,165.37,165.28,0.1]
[1729604735664,23.776884,165.36,165.27,0.1]
[1729604735851,23.776884,165.36,165.29,0.1]
[1729604736179,29.824284,165.36,165.29,0.1]
[1729604736676,23.776884,165.36,165.29,0.1]
[1729604737068,6.0478,165.35,165.29,0.1]
[1729604737270,20.0,165.46,165.33,0.2]
[1729604737461,6.0452,165.42,165.34,0.1]
[1729604737771,6.2332,165.47,165.37,0.1]
[1729604737975,6.2332,165.47,165.36,0.1]
[1729604737976,6.0441,165.46,165.38,0.1]
[1729604738148,6.0442,165.45,165.38,0.1]
[1729604738754,6.0437,165.46,165.38,0.2]
[1729604738953,6.0427,165.49,165.41,0.1]
[1729604739154,16.2942,165.53,165.39,0.1]
[1729604739155,6.0441,165.46,165.39,0.1]
[1729604739579,6.0441,165.45,165.38,0.1]
[1729604739872,6.0441,165.45,165.39,0.1]
[1729604740661,15.1048,165.51,165.39,0.1]
[1729604740662,6.0437,165.47,165.39,0.2]
[1729604741085,16.2942,165.53,165.42,0.1]
[1729604741258,16.2942,165.53,165.43,0.1]
[1729604741574,6.0416,165.52,165.44,0.1]
[1729604741766,16.2942,165.53,165.42,0.1]
[1729604741960,6.0433,165.48,165.41,0.2]
[1729604742165,6.044,165.46,165.39,0.1]
[1729604742368,6.0433,165.48,165.41,0.1]
[1729604742587,6.0433,165.48,165.41,0.2]
[1729604743076,6.0433,165.48,165.41,0.1]
[1729604743467,23.776884,165.51,165.39,0.1]
[1729604743783,23.776884,165.49,165.38,0.2]
[1729604743991,6.044,165.46,165.39,0.2]
[1729604744161,6.0431,165.48,165.4,0.2]
[1729604744485,31.3974,165.53,165.36,92.7885]
[1729604744486,16.2942,165.53,165.43,0.1]
[1729604744658,16.2942,165.53,165.42,0.1]
[1729604744659,16.2942,165.53,165.37,0.2]
[1729604744980,16.2942,165.53,165.38,0.2]
[1729604744981,15.1057,165.5,165.38,0.2]
[1729604745185,15.1057,165.5,165.4,0.1]
[1729604745356,6.0432,165.48,165.4,0.1]
[1729604745561,31.3973,165.53,165.38,0.2]
[1729604745562,6.0442,165.45,165.38,0.2]
[1729604745859,6.0426,165.49,165.38,0.1]
[1729604746060,6.044,165.46,165.39,0.1]
[1729604746485,6.044,165.46,165.39,0.2]
[1729604747580,23.776884,165.48,165.41,0.1]
[1729604747781,23.776884,165.48,165.42,0.1]
[1729604748083,16.2942,165.53,165.42,0.1]
[1729604748390,16.2942,165.53,165.41,0.1]
[1729604748391,6.0435,165.47,165.41,0.1]
[1729604749061,20.0,165.51,165.41,0.1]
[1729604749259,23.776884,165.5,165.41,0.1]
[1729604749483,23.776884,165.47,165.41,0.1]
[1729604749686,15.1014,165.55,165.42,0.1]
[1729604749989,6.0421,165.51,165.43,0.2]
[1729604750197,6.0421,165.51,165.43,0.1]
[1729604750485,6.0423,165.5,165.43,0.1]
[1729604750686,6.0423,165.5,165.42,0.1]
[1729604750888,6.0435,165.47,165.4,0.1]
[1729604751078,6.0442,165.45,165.4,0.1]
[1729604751261,6.0437,165.47,165.41,0.1]
[1729604751691,6.0437,165.47,165.4,0.1]
[1729604752066,6.0438,165.46,165.4,0.2]
[1729604752265,6.0438,165.46,165.41,0.1]
[1729604752488,6.0434,165.47,165.41,0.1]
[1729604752686,6.0461,165.4,165.33,0.1]
[1729604753070,6.0464,165.39,165.32,0.2]
[1729604753300,6.0469,165.38,165.31,0.1]
[1729604753485,6.0469,165.38,165.3,0.2]
[1729604753694,6.0463,165.39,165.32,0.2]
[1729604753995,21.2477,165.43,165.32,0.2]
[1729604754176,6.0457,165.41,165.34,0.1]
[1729604754989,6.0448,165.43,165.36,0.1]
[1729604755198,6.0448,165.43,165.36,0.2]
[1729604756570,6.0459,165.41,165.35,0.1]
[1729604756799,23.776884,165.43,165.32,0.1]
[1729604757091,6.0472,165.37,165.31,0.1]
[1729604757268,6.0472,165.37,165.31,0.2]
[1729604757469,6.0472,165.37,165.31,0.1]
[1729604758592,23.776884,165.4,165.31,0.2]
[1729604758984,23.776884,165.39,165.32,0.2]
[1729604759290,6.0466,165.38,165.32,0.1]
[1729604759800,29.823184,165.39,165.33,0.1]
[1729604760168,23.776884,165.39,165.33,0.1]
[1729604760512,6.0447,165.44,165.36,0.1]
[1729604760677,6.0447,165.44,165.36,0.2]
[1729604760878,12.3664,165.48,165.4,0.1]
[1729604761106,6.4111,165.52,165.4,0.2]
[1729604761411,6.0419,165.51,165.43,0.2]
[1729604761694,6.0406,165.55,165.47,0.1]
[1729604761886,6.0409,165.54,165.47,0.1]
[1729604762196,6.0397,165.58,165.5,0.1]
[1729604762395,6.039,165.59,165.51,0.1]
[1729604762615,15.4735,165.6,165.52,0.1]
[1729604762897,29.39821573,165.66,165.57,0.1]
[1729604763099,23.99385735,165.76,165.53,70.0]
[1729604763100,4.44413751,165.65,165.62,0.1]
[1729604763403,6.0349,165.71,165.63,0.1]
[1729604763572,4.44364303,165.7,165.6,0.1]
[1729604763780,6.63,165.72,165.56,0.1]
[1729604763781,4.44347519,165.69,165.56,0.1]
[1729604764107,6.0379,165.62,165.56,0.1]
[1729604764405,6.0383,165.61,165.54,0.1]
[1729604764580,6.0386,165.6,165.52,0.1]
[1729604764781,15.0902,165.67,165.56,0.1]
[1729604765005,6.0376,165.63,165.56,0.1]
[1729604765300,29.814784,165.62,165.56,0.1]
[1729604765675,29.814784,165.62,165.55,0.2]
[1729604766092,23.776884,165.62,165.53,0.1]
[1729604766403,6.039,165.59,165.51,0.1]
[1729604766577,20.0,165.61,165.45,76.1417]
[1729604766578,6.0404,165.55,165.49,0.1]
[1729604766786,6.0404,165.55,165.49,0.2]
[1729604767681,6.0404,165.55,165.45,76.1417]
[1729604767682,20.0,165.59,165.45,0.1]
[1729604768001,6.043,165.49,165.42,0.1]
[1729604768176,6.043,165.49,165.42,0.2]
[1729604768381,6.043,165.49,165.42,0.1]
[1729604768598,6.0431,165.48,165.42,0.1]
[1729604768899,20.0,165.47,165.36,0.1]
[1729604769106,6.0444,165.45,165.38,0.1]
[1729604769289,23.776884,165.44,165.37,0.2]
[1729604769604,23.776884,165.44,165.35,6.4829]
[1729604769605,23.776884,165.44,165.36,0.1]
[1729604769796,23.776884,165.44,165.36,0.2]
[1729604770105,23.776884,165.44,165.38,0.1]
[1729604770401,23.776884,165.44,165.37,0.2]
[1729604770602,23.776884,165.44,165.38,0.1]
[1729604771005,29.821384,165.44,165.38,0.1]
[1729604771207,29.821384,165.44,165.35,6.4829]
[1729604771208,23.776884,165.44,165.35,0.1]
[1729604771507,6.0448,165.43,165.37,0.1]
[1729604771707,6.0452,165.42,165.36,0.2]
[1729604772207,23.776884,165.44,165.37,0.1]
[1729604772381,29.821584,165.44,165.37,0.1]
[1729604772581,6.0448,165.43,165.36,0.2]
[1729604772895,23.776884,165.42,165.36,0.1]
[1729604773207,29.822484,165.41,165.35,0.1]
[1729604773379,23.776884,165.41,165.33,0.2]
[1729604773575,6.0466,165.39,165.34,0.1]
[1729604773778,23.776884,165.41,165.34,0.2]
[1729604773985,23.776884,165.41,165.34,0.1]
[1729604774207,23.776884,165.41,165.34,0.2]
[1729604774405,23.776884,165.41,165.32,0.1]
[1729604774593,23.776884,165.41,165.31,0.1]
[1729604774594,20.0,165.4,165.31,0.1]
[1729604774810,20.0,165.4,165.32,0.1]
[1729604774811,6.0466,165.38,165.32,0.1]
[1729604775108,23.776884,165.39,165.33,0.1]
[1729604775609,6.047,165.38,165.32,0.2]
[1729604775984,23.776884,165.39,165.32,0.2]
[1729604776188,29.823184,165.39,165.33,0.1]
[1729604777090,43.776884,165.46,165.35,0.1]
[1729604777292,23.776884,165.41,165.35,0.1]
[1729604777493,6.0456,165.41,165.35,0.1]
[1729604778105,6.0456,165.41,165.34,0.2]
[1729604778309,43.776884,165.44,165.31,0.1]
[1729604778604,43.776884,165.46,165.32,0.1]
[1729604778902,23.776884,165.38,165.32,0.1]
[1729604779615,29.823584,165.38,165.31,0.2]
[1729604779927,29.823584,165.38,165.31,0.1]
[1729604780220,29.823584,165.38,165.31,0.2]
[1729604780425,6.0459,165.41,165.34,0.1]
[1729604780728,15.1112,165.44,165.33,0.1]
[1729604780729,6.0466,165.39,165.33,0.1]
[1729604781103,6.0467,165.38,165.33,0.1]
[1729604782520,6.0475,165.36,165.31,0.1]
[1729604783204,29.824584,165.35,165.26,0.1]
[1729604783500,23.776884,165.35,165.27,0.2]
[1729604783831,6.0488,165.33,165.27,0.1]
[1729604784008,6.0489,165.32,165.27,0.2]
[1729604784414,6.0489,165.32,165.26,0.1]
[1729604784610,6.0489,165.32,165.27,0.2]
[1729604784814,23.776884,165.35,165.24,0.1]
[1729604785022,6.0495,165.31,165.25,0.1]
[1729604785431,20.0,165.28,165.2,0.1]
[1729604785605,23.776884,165.29,165.18,0.7234569]
[1729604785821,6.0515,165.25,165.18,0.7234569]
[1729604786006,23.776884,165.24,165.18,0.7234569]
[1729604786221,23.776884,165.26,165.2,0.2]
[1729604786422,23.776884,165.26,165.19,0.1]
[1729604786704,12.78097431,165.37,165.26,0.1]
[1729604786921,6.0489,165.32,165.26,0.1]
[1729604787105,6.3579,165.37,165.23,0.1]
[1729604787317,6.0501,165.29,165.23,0.1]
[1729604787821,6.0503,165.28,165.22,0.1]
[1729604788026,29.827884,165.27,165.21,0.1]
[1729604788205,6.0511,165.26,165.21,0.1]
[1729604788839,23.776884,165.27,165.18,0.7234569]
[1729604789131,23.776884,165.21,165.18,0.6234569]
[1729604789307,6.0525,165.22,165.18,0.6234569]
[1729604789722,23.776884,165.23,165.18,0.7234569]
[1729604790211,23.776884,165.23,165.18,0.6234569]
[1729604790412,6.0528,165.22,165.18,0.6234569]
[1729604790613,29.829284,165.23,165.18,0.7234569]
[1729604790922,6.051,165.26,165.21,0.1]
[1729604791116,6.0514,165.26,165.2,0.2]
[1729604791309,6.0514,165.26,165.18,0.6234569]
[1729604791310,6.0517,165.25,165.19,0.2]
[1729604791505,6.0517,165.25,165.2,0.2]
[1729604791703,6.0517,165.25,165.2,0.1]
[1729604791921,6.0517,165.25,165.2,0.2]
[1729604792131,6.0518,165.24,165.21,0.1]